bitfinex-derivatives/quotes_BTCF0:USTF0_20251214
["timestamp","ask_amount","ask_price","bid_price","bid_amount"]
[1765725549453,0.0112247,89083.0,89073.0,0.05743]
[1765725549659,0.0112238,89089.0,89073.0,0.0686558]
[1765725550248,0.12614133,89090.0,89073.0,0.0686558]
[1765725550448,0.05473,89093.0,89092.0,0.0112234]
[1765725550651,0.41553,89104.0,89103.0,0.05743]
[1765725550950,0.45133361,89104.0,89103.0,0.05743]
[1765725551855,0.09053361,89104.0,89103.0,0.05743]
[1765725552054,0.0659519,89104.0,89103.0,0.05743]
[1765725552662,0.0669519,89104.0,89103.0,0.05843]
[1765725552956,0.0679519,89104.0,89103.0,0.05843]
[1765725558458,0.0679519,89104.0,89103.0,0.001]
[1765725558767,0.4287519,89104.0,89103.0,0.001]
[1765725559180,0.0659529,89096.0,89095.0,0.00016836]
[1765725559760,0.4267529,89096.0,89095.0,0.00016836]
[1765725560568,0.4267529,89096.0,89095.0,0.00116836]
[1765725561473,0.4277529,89096.0,89095.0,0.00216836]
[1765725562269,0.4277529,89096.0,89095.0,0.00116836]
[1765725562467,0.4287529,89096.0,89095.0,0.00116836]
[1765725563362,0.4287529,89096.0,89095.0,0.05859836]
[1765725563955,0.4287529,89096.0,89095.0,0.02960836]
[1765725564362,0.4277529,89096.0,89095.0,0.00016836]
[1765725564571,0.4287529,89096.0,89095.0,0.02860836]
[1765725564767,0.4287529,89096.0,89095.0,0.05759836]
[1765725565168,0.0679529,89096.0,89095.0,0.05759836]
[1765725565368,0.0669529,89096.0,89095.0,0.05759836]
[1765725566169,0.05573,89096.0,89095.0,0.06882136]
[1765725566366,0.02922,89096.0,89095.0,0.05759836]
[1765725566557,0.05831,89096.0,89095.0,0.05759836]
[1765725566965,0.001,89096.0,89095.0,0.06882136]
[1765725567369,0.54425133,89105.0,89104.0,0.0567]
[1765725567669,0.41811,89105.0,89104.0,0.0567]
[1765725569074,0.41911,89105.0,89104.0,0.0567]
[1765725569477,0.4303318,89105.0,89104.0,0.0567]
[1765725570186,0.4323318,89105.0,89104.0,0.0577]
[1765725570484,0.4323318,89105.0,89104.0,0.001]
[1765725570979,0.4323318,89105.0,89104.0,0.02999]
[1765725571179,0.4323318,89105.0,89104.0,0.0577]
[1765725571881,0.42111,89105.0,89104.0,0.0577]
[1765725572380,0.06031,89105.0,89104.0,0.0577]
[1765725573579,0.03122,89105.0,89104.0,0.0577]
[1765725574174,0.06031,89105.0,89104.0,0.0577]
[1765725575881,0.003,89105.0,89104.0,0.0577]
[1765725576471,0.06031,89105.0,89104.0,0.0577]
[1765725578281,0.08502582,89105.0,89104.0,0.0577]
[1765725578684,0.08502582,89105.0,89104.0,0.001]
[1765725579183,0.08502582,89105.0,89104.0,0.0577]
[1765725581687,0.08502582,89105.0,89104.0,0.0689219]
[1765725583693,0.02771582,89105.0,89104.0,0.0689219]
[1765725585783,0.05593582,89105.0,89104.0,0.0689219]
[1765725585984,0.08502582,89105.0,89104.0,0.0689219]
[1765725586792,0.08502582,89105.0,89104.0,0.0577]
[1765725586982,0.08502582,89105.0,89104.0,0.02999]
[1765725587289,0.08502582,89105.0,89104.0,0.0577]
[1765725587891,0.05593582,89105.0,89104.0,0.0577]
[1765725588273,0.02771582,89105.0,89104.0,0.0577]
[1765725588477,0.02238222,89105.0,89104.0,0.0577]
[1765725588678,0.00016836,89112.0,89111.0,0.067921]
[1765725588883,0.00016836,89112.0,89111.0,0.428721]
[1765725589686,0.00316836,89112.0,89111.0,0.428721]
[1765725589994,0.00616836,89112.0,89111.0,0.429721]
[1765725591090,0.03438836,89112.0,89111.0,0.429721]
[1765725592678,0.00616836,89112.0,89111.0,0.429721]
[1765725593082,0.06347836,89112.0,89111.0,0.429721]
[1765725598584,0.03438836,89112.0,89111.0,0.429721]
[1765725599091,0.06192836,89112.0,89111.0,0.429721]
[1765725600687,0.07314926,89112.0,89111.0,0.4185]
[1765725600894,0.09786357,89112.0,89111.0,0.0577]
[1765725601297,0.09786357,89112.0,89111.0,0.001]
[1765725601679,0.45866357,89112.0,89111.0,0.001]
[1765725601895,0.45867356,89112.0,89111.0,0.001]
[1765725602295,0.45867356,89112.0,89095.0,0.01752836]
[1765725602296,0.0663929,89096.0,89095.0,0.05828836]
[1765725603796,0.0911156,89096.0,89095.0,0.05928836]
[1765725604095,0.0673929,89096.0,89095.0,0.05928836]
[1765725604395,0.0673929,89096.0,89095.0,0.03102836]
[1765725605396,0.09211158,89096.0,89095.0,0.00216836]
[1765725606187,0.09211158,89096.0,89095.0,0.03102836]
[1765725606703,0.09211158,89096.0,89095.0,0.06028836]
[1765725606704,0.08088868,89096.0,89095.0,0.06028836]
[1765725609298,0.05334868,89096.0,89095.0,0.06028836]
[1765725609898,0.08088868,89096.0,89095.0,0.06028836]
[1765725611693,0.08088868,89096.0,89095.0,0.00216836]
[1765725612098,0.08088868,89096.0,89095.0,0.06028836]
[1765725613498,0.09211158,89096.0,89095.0,0.00216836]
[1765725614400,0.09211158,89096.0,89095.0,0.03102836]
[1765725615290,0.08088868,89096.0,89095.0,0.06028836]
[1765725615492,0.05617,89096.0,89095.0,0.06028836]
[1765725617497,0.08076803,89096.0,89095.0,0.00216836]
[1765725618404,0.08076803,89096.0,89076.0,0.01736]
[1765725618405,0.0663953,89077.0,89076.0,0.07548]
[1765725618702,0.05517,89077.0,89076.0,0.07548]
[1765725619308,0.05517,89077.0,89076.0,0.0867054]
[1765725619495,0.05717,89077.0,89076.0,0.0877054]
[1765725619695,0.05717,89077.0,89076.0,0.0703454]
[1765725620200,0.05517,89077.0,89076.0,0.05812]
[1765725620401,0.05617,89077.0,89076.0,0.06012]
[1765725620601,0.05817,89077.0,89076.0,0.06012]
[1765725621004,0.05617,89077.0,89076.0,0.06012]
[1765725621199,0.05617,89077.0,89076.0,0.004]
[1765725621396,0.44156965,89077.0,89076.0,0.004]
[1765725621593,0.0663963,89069.0,89068.0,0.00016836]
[1765725621798,0.0909988,89069.0,89068.0,0.00016836]
[1765725622700,0.0909988,89069.0,89068.0,0.00116836]
[1765725622701,0.0929988,89069.0,89068.0,0.00116836]
[1765725624107,0.0683963,89069.0,89068.0,0.00116836]
[1765725624311,0.0703963,89069.0,89068.0,0.00116836]
[1765725624712,0.0683963,89069.0,89068.0,0.00116836]
[1765725624917,0.0693963,89069.0,89068.0,0.00116836]
[1765725625211,0.4301963,89069.0,89068.0,0.00116836]
[1765725625405,0.4281963,89069.0,89068.0,0.00016836]
[1765725625613,0.4301963,89069.0,89068.0,0.00116836]
[1765725626909,0.4301963,89069.0,89057.0,0.3608]
[1765725626910,0.0112285,89052.0,89047.0,0.37816]
[1765725627105,0.05717,89048.0,89047.0,0.43504]
[1765725627810,0.05717,89048.0,89047.0,0.41768]
[1765725628407,0.05717,89048.0,89047.0,0.38926]
[1765725628804,0.05717,89048.0,89047.0,0.39126]
[1765725628805,0.06517,89048.0,89047.0,0.39126]
[1765725629004,0.06517,89048.0,89047.0,0.4482591]
[1765725629214,0.06517,89048.0,89047.0,0.43703]
[1765725630404,0.03333,89048.0,89047.0,0.43703]
[1765725630616,0.03733,89048.0,89047.0,0.43703]
[1765725634526,0.008,89048.0,89047.0,0.43703]
[1765725650642,0.00016836,89056.0,89047.0,0.43703]
[1765725650643,0.00016836,89056.0,89055.0,0.0854581]
[1765725650833,0.00016836,89056.0,89055.0,0.4462581]
[1765725652542,0.00016836,89056.0,89055.0,0.53490478]
[1765725652739,0.00016836,89056.0,89055.0,0.53790478]
[1765725652935,0.00116836,89056.0,89055.0,0.53790478]
[1765725653245,0.00116836,89056.0,89055.0,0.60043381]
[1765725653444,0.00116836,89056.0,89055.0,0.53990478]
[1765725655550,0.0683959,89073.0,89072.0,0.0681059]
[1765725655749,0.09298511,89073.0,89072.0,0.0681059]
[1765725656639,0.09498511,89073.0,89072.0,0.0691059]
[1765725657045,0.09598511,89073.0,89072.0,0.0691059]
[1765725658037,0.09498511,89073.0,89072.0,0.05988]
[1765725658644,0.09298511,89073.0,89072.0,0.05888]
[1765725658852,0.09298511,89073.0,89072.0,0.05988]
[1765725659654,0.09398511,89073.0,89072.0,0.06088]
[1765725662253,0.0693959,89073.0,89072.0,0.06088]
[1765725663453,0.0693959,89073.0,89072.0,0.0721059]
[1765725663641,0.05817,89073.0,89072.0,0.0721059]
[1765725665348,0.001,89073.0,89072.0,0.0721059]
[1765725665749,0.00016836,89081.0,89080.0,0.0858549]
[1765725666350,0.02799836,89081.0,89080.0,0.0858549]
[1765725666851,0.05742836,89081.0,89080.0,0.0858549]
[1765725667248,0.02899836,89081.0,89080.0,0.0858549]
[1765725667850,0.05742836,89081.0,89080.0,0.0858549]
[1765725668244,0.05642836,89081.0,89080.0,0.0858549]
[1765725668448,0.05742836,89081.0,89080.0,0.0878549]
[1765725669560,0.02799836,89081.0,89080.0,0.0888549]
[1765725669759,0.02899836,89081.0,89080.0,0.0918549]
[1765725669958,0.05742836,89081.0,89080.0,0.0918549]
[1765725671149,0.05742836,89081.0,89080.0,0.0888549]
[1765725671346,0.02799836,89081.0,89080.0,0.0888549]
[1765725671546,0.00116836,89081.0,89080.0,0.0918549]
[1765725672559,0.00016836,89081.0,89080.0,0.0888549]
[1765725672864,0.00116836,89081.0,89080.0,0.0918549]
[1765725674058,0.02899836,89081.0,89080.0,0.0918549]
[1765725674258,0.05742836,89081.0,89080.0,0.0918549]
[1765725675464,0.00116836,89081.0,89080.0,0.0918549]
[1765725679264,0.02899836,89081.0,89080.0,0.0918549]
[1765725679470,0.00116836,89081.0,89080.0,0.0918549]
[1765725683171,0.02899836,89081.0,89080.0,0.0918549]
[1765725683378,0.00116836,89081.0,89080.0,0.0918549]
[1765725683778,0.02899836,89081.0,89080.0,0.0918549]
[1765725683975,0.00116836,89081.0,89080.0,0.0918549]
[1765725687786,0.00116836,89081.0,89080.0,1.5918549]
[1765725692093,0.03080836,89081.0,89080.0,1.5918549]
[1765725692292,0.00116836,89081.0,89080.0,1.5918549]
[1765725692493,0.03080836,89081.0,89080.0,1.5918549]
[1765725692688,0.00116836,89081.0,89080.0,1.65239494]
[1765725693093,0.00116836,89081.0,89080.0,1.5918549]
[1765725694396,0.00116836,89081.0,89080.0,1.9526549]
[1765725695395,0.13728734,89100.0,89080.0,1.9526549]
[1765725695396,0.19534734,89100.0,89099.0,0.0669525]
[1765725695693,0.09386863,89100.0,89099.0,0.0669525]
[1765725695901,0.09386863,89100.0,89093.0,0.3608]
[1765725695902,0.05806,89094.0,89093.0,0.3608]
[1765725696098,0.0692842,89086.0,89085.0,0.07344]
[1765725696290,0.09387043,89086.0,89085.0,0.07344]
[1765725696892,0.0692842,89086.0,89085.0,0.07344]
[1765725697092,0.09387256,89086.0,89085.0,0.07344]
[1765725697504,0.09387256,89086.0,89085.0,0.07544]
[1765725698003,0.09387256,89086.0,89085.0,0.05773]
[1765725698392,0.09487256,89086.0,89085.0,0.05973]
[1765725698602,0.08364836,89086.0,89085.0,0.07744]
[1765725698799,0.05906,89086.0,89085.0,0.07744]
[1765725699204,0.05906,89086.0,89085.0,0.07844]
[1765725699798,0.001,89086.0,89085.0,0.13902037]
[1765725700000,0.02964,89086.0,89085.0,0.13602037]
[1765725700194,0.03064,89086.0,89085.0,0.13902037]
[1765725700502,0.03064,89086.0,89085.0,0.14002037]
[1765725701600,0.00016836,89094.0,89093.0,0.0669533]
[1765725701901,0.02476103,89094.0,89093.0,0.0669533]
[1765725702500,0.00016836,89094.0,89093.0,0.12754813]
[1765725702695,0.00016836,89094.0,89093.0,0.12954813]
[1765725703090,0.00016836,89094.0,89093.0,0.13054813]
[1765725703704,0.00016836,89094.0,89093.0,0.0699533]
[1765725703902,0.00016836,89094.0,89093.0,0.78280568]
[1765725704102,0.05806,89114.0,89113.0,0.0669508]
[1765725704409,0.08263801,89114.0,89113.0,0.0669508]
[1765725705308,0.08263801,89114.0,89113.0,0.0679508]
[1765725705309,0.08563801,89114.0,89113.0,0.0679508]
[1765725705704,0.08863801,89114.0,89113.0,0.0679508]
[1765725708706,0.06406,89114.0,89113.0,0.0679508]
[1765725710309,0.06206,89114.0,89113.0,0.0679508]
[1765725710704,0.06106,89114.0,89113.0,0.0669508]
[1765725719202,0.003,89114.0,89113.0,0.0669508]
[1765725720817,0.002,89114.0,89113.0,0.0689508]
[1765725721417,0.00011163,89122.0,89121.0,0.0666497]
[1765725721718,0.4285069,89144.0,89143.0,0.066647]
[1765725721904,0.45335402,89144.0,89143.0,0.05543]
[1765725722223,0.45335402,89144.0,89143.0,0.066647]
[1765725722414,0.45335402,89144.0,89131.0,0.3608]
[1765725722415,0.0112184,89132.0,89131.0,0.3608]
[1765725722618,0.0677095,89123.0,89122.0,0.0666496]
[1765725722916,0.00885,89135.0,89115.0,0.01799]
[1765725722917,0.0677104,89116.0,89115.0,0.05543]
[1765725723105,0.05649,89116.0,89115.0,0.05543]
[1765725724607,0.05594774,89116.0,89115.0,0.05543]
[1765725724807,0.05594774,89116.0,89115.0,0.05743]
[1765725726112,0.05594774,89116.0,89115.0,0.03155]
[1765725726614,0.05594774,89116.0,89115.0,0.002]
[1765725726816,0.05594774,89116.0,89115.0,0.004]
[1765725727812,0.03345334,89116.0,89115.0,0.002]
[1765725728014,0.03445334,89116.0,89115.0,0.02955]
[1765725728215,0.03445334,89116.0,89115.0,0.02755]
[1765725729521,0.03445334,89116.0,89115.0,0.05643]
[1765725729820,0.03345334,89116.0,89115.0,0.05643]
[1765725730019,0.03345334,89116.0,89115.0,0.05743]
[1765725731104,0.03345334,89116.0,89115.0,0.07542]
[1765725731510,0.05649,89124.0,89123.0,0.0666495]
[1765725731711,0.08137726,89124.0,89123.0,0.0666495]
[1765725732317,0.08137726,89124.0,89123.0,0.05543]
[1765725732919,0.08237726,89124.0,89123.0,0.05543]
[1765725733216,0.08337726,89124.0,89123.0,0.05543]
[1765725734228,0.08237726,89124.0,89123.0,0.0676495]
[1765725734420,0.08137726,89124.0,89123.0,0.0676495]
[1765725736115,0.08137726,89124.0,89123.0,0.0666495]
[1765725736319,0.08137726,89124.0,89123.0,0.0676495]
[1765725737524,0.05649,89138.0,89137.0,0.05543]
[1765725737723,0.08109631,89138.0,89137.0,0.05543]
[1765725739024,0.02460631,89138.0,89137.0,0.05543]
[1765725739225,0.08609631,89138.0,89137.0,0.05543]
[1765725739420,0.06149,89138.0,89137.0,0.05543]
[1765725740421,0.06149,89138.0,89137.0,0.41623]
[1765725743317,0.08605774,89138.0,89137.0,0.3608]
[1765725744031,0.08605774,89138.0,89137.0,0.38835]
[1765725744431,0.08605774,89138.0,89137.0,0.41623]
[1765725746435,0.08605774,89138.0,89137.0,0.38835]
[1765725746632,0.08605774,89138.0,89137.0,0.41722]
[1765725748423,0.08605774,89138.0,89137.0,0.05642]
[1765725750829,0.05607,89130.0,89129.0,0.38873]
[1765725751030,0.05607,89130.0,89129.0,0.4176]
[1765725751932,0.05807,89130.0,89129.0,0.4176]
[1765725753328,0.05807,89130.0,89129.0,0.0568]
[1765725757332,0.05807,89130.0,89129.0,0.4176]
[1765725762144,0.0301,89130.0,89129.0,0.4176]
[1765725762346,0.05807,89130.0,89129.0,0.4176]
[1765725764846,0.002,89130.0,89129.0,0.4176]
[1765725765248,0.05807,89130.0,89129.0,0.4176]
[1765725767149,0.05807,89130.0,89129.0,0.0568]
[1765725767340,0.08269648,89130.0,89129.0,0.0568]
[1765725769139,0.05807,89130.0,89129.0,0.4176]
[1765725769349,0.08263098,89130.0,89129.0,0.4176]
[1765725772252,0.08263098,89130.0,89129.0,0.47809301]
[1765725776356,0.08263098,89130.0,89129.0,0.4176]
[1765725776859,0.08263098,89130.0,89129.0,0.47816606]
[1765725777059,0.02656098,89130.0,89129.0,0.47816606]
[1765725777254,0.02656098,89130.0,89129.0,0.4176]
[1765725777455,0.002,89130.0,89129.0,0.4176]
[1765725780352,0.3608,89149.0,89148.0,0.05889]
[1765725780353,0.41911,89149.0,89148.0,0.05889]
[1765725780664,0.44367734,89149.0,89148.0,0.05889]
[1765725780960,0.44367734,89149.0,89148.0,0.0701064]
[1765725781355,0.44367734,89149.0,89142.0,0.07023841]
[1765725781356,0.38536734,89149.0,89142.0,0.07023841]
[1765725781556,0.38536734,89149.0,89142.0,0.01134841]
[1765725781557,0.05831,89143.0,89142.0,0.01134841]
[1765725781752,0.05831,89141.0,89140.0,0.00016827]
[1765725781957,0.08287734,89141.0,89140.0,0.00016827]
[1765725782559,0.08287734,89141.0,89140.0,0.05905827]
[1765725782860,0.08287734,89141.0,89140.0,0.07572827]
[1765725783366,0.08587734,89141.0,89140.0,0.07572827]
[1765725783865,0.08887734,89141.0,89140.0,0.07572827]
[1765725785359,0.03056734,89141.0,89140.0,0.07572827]
[1765725787163,0.006,89141.0,89140.0,0.07572827]
[1765725787566,0.006,89141.0,89140.0,0.13627327]
[1765725788060,0.003,89141.0,89140.0,0.13627327]
[1765725788259,0.006,89141.0,89140.0,0.07572827]
[1765725789268,0.003,89141.0,89140.0,0.07572827]
[1765725789462,0.005,89141.0,89140.0,0.07572827]
[1765725790767,0.002,89141.0,89140.0,0.07572827]
[1765725790955,0.0695255,89155.0,89154.0,0.0701056]
[1765725791160,0.09405962,89155.0,89154.0,0.0701056]
[1765725791959,0.05386412,89155.0,89154.0,0.0701056]
[1765725792166,0.05786412,89155.0,89154.0,0.0711056]
[1765725792665,0.06186412,89155.0,89154.0,0.0711056]
[1765725793470,0.008,89155.0,89154.0,0.0711056]
[1765725793769,0.002,89155.0,89154.0,0.0701056]
[1765725793963,0.12588117,89180.0,89154.0,0.0701056]
[1765725793964,0.05831,89181.0,89178.0,0.0112125]
[1765725794163,0.05831,89181.0,89180.0,0.07556]
[1765725794365,0.08280176,89181.0,89180.0,0.07556]
[1765725795475,0.06131,89181.0,89180.0,0.07556]
[1765725796273,0.005,89181.0,89180.0,0.07556]
[1765725796473,0.03433,89181.0,89180.0,0.07556]
[1765725796676,0.005,89181.0,89180.0,0.07556]
[1765725798067,0.00333672,89181.0,89180.0,0.07556]
[1765725798268,0.41911,89202.0,89201.0,0.0700997]
[1765725799166,0.05831,89202.0,89201.0,0.0700997]
[1765725799465,0.06131,89202.0,89201.0,0.05889]
[1765725800670,0.01773,89202.0,89196.0,0.05889]
[1765725800872,0.0695202,89197.0,89196.0,0.05889]
[1765725801082,0.05831,89194.0,89193.0,0.00016816]
[1765725804271,0.05931,89194.0,89193.0,0.00016816]
[1765725804681,0.05931,89194.0,89193.0,0.05905816]
[1765725805077,0.05931,89194.0,89193.0,0.00016816]
[1765725805481,0.05931,89194.0,89193.0,0.05905816]
[1765725809777,0.0705206,89194.0,89193.0,0.05905816]
[1765725811575,0.0705206,89194.0,89193.0,0.00016816]
[1765725812176,0.0705206,89194.0,89193.0,0.05821816]
[1765725813177,0.0705206,89194.0,89193.0,0.00016816]
[1765725813468,0.0705206,89194.0,89193.0,0.05821816]
[1765725814182,0.0705206,89194.0,89193.0,0.00016816]
[1765725814479,0.0705206,89194.0,89193.0,0.02865816]
[1765725814680,0.0705206,89194.0,89193.0,0.00016816]
[1765725816475,0.4313206,89194.0,89193.0,0.00016816]
[1765725816673,0.45564064,89194.0,89193.0,0.00016816]
[1765725816874,0.4313206,89194.0,89193.0,0.00016816]
[1765725817079,0.4556489,89194.0,89193.0,0.02865816]
[1765725817279,0.4313206,89194.0,89193.0,0.06942886]
[1765725817584,0.39113,89194.0,89193.0,0.06942886]
[1765725818078,0.41827,89194.0,89193.0,0.06942886]
[1765725818284,0.41644,89194.0,89193.0,0.06942886]
[1765725818674,0.41644,89194.0,89193.0,0.07042886]
[1765725819080,0.3608,89194.0,89193.0,0.07042886]
[1765725819475,0.06585,89199.0,89198.0,0.05805]
[1765725819678,0.09019419,89199.0,89198.0,0.05805]
[1765725820285,0.07898419,89199.0,89198.0,0.05805]
[1765725820886,0.05464,89199.0,89198.0,0.05805]
[1765725821276,0.07900895,89199.0,89198.0,0.05805]
[1765725821676,0.05564,89199.0,89198.0,0.05805]
[1765725822180,0.08002737,89199.0,89198.0,0.05805]
[1765725823282,0.05288737,89199.0,89198.0,0.05805]
[1765725823489,0.08002737,89199.0,89198.0,0.05805]
[1765725823674,0.02538737,89199.0,89198.0,0.05805]
[1765725823877,0.08002737,89199.0,89198.0,0.05805]
[1765725824073,0.05288737,89199.0,89198.0,0.05805]
[1765725824482,0.08002737,89199.0,89198.0,0.05805]
[1765725826183,0.05288737,89199.0,89198.0,0.05805]
[1765725826492,0.08002737,89199.0,89198.0,0.05805]
[1765725826991,0.05288737,89199.0,89198.0,0.05805]
[1765725827193,0.02538737,89199.0,89198.0,0.05805]
[1765725827393,0.08002737,89199.0,89198.0,0.05805]
[1765725828492,0.05288737,89199.0,89198.0,0.05805]
[1765725828691,0.08002737,89199.0,89198.0,0.05805]
[1765725828888,0.02538737,89199.0,89198.0,0.05805]
[1765725829592,0.08002737,89199.0,89198.0,0.05805]
[1765725832091,0.05464,89198.0,89197.0,0.3608]
[1765725832292,0.07902737,89198.0,89197.0,0.3608]
[1765725832495,0.07902737,89198.0,89197.0,0.41885]
[1765725833291,0.0658506,89194.0,89193.0,0.05821816]
[1765725833496,0.09023797,89194.0,89193.0,0.05821816]
[1765725834585,0.09038737,89194.0,89193.0,0.00116816]
[1765725834791,0.09038737,89194.0,89193.0,0.05921816]
[1765725836201,0.09038737,89194.0,89193.0,0.02828816]
[1765725836404,0.09038737,89194.0,89193.0,0.00116816]
[1765725838001,0.09038737,89194.0,89174.0,0.06034972]
[1765725838002,0.0689836,89170.0,89169.0,0.0654837]
[1765725838201,0.05777,89170.0,89169.0,0.0654837]
[1765725838402,0.05777,89170.0,89169.0,0.02712]
[1765725838703,0.3608,89177.0,89167.0,0.3608]
[1765725838898,0.05777,89168.0,89167.0,0.3608]
[1765725839308,0.0689843,89164.0,89163.0,0.00016816]
[1765725839500,0.0689843,89164.0,89163.0,0.05443816]
[1765725839705,0.05777,89164.0,89163.0,0.05443816]
[1765725839899,0.02891,89169.0,89168.0,0.0654838]
[1765725840100,0.09351561,89169.0,89168.0,0.05427]
[1765725840702,0.0689843,89164.0,89163.0,0.00016816]
[1765725840999,0.09351929,89164.0,89163.0,0.00416816]
[1765725841403,0.0689843,89164.0,89163.0,0.00416816]
[1765725841607,0.0689843,89164.0,89163.0,0.02728816]
[1765725842201,0.0689843,89164.0,89163.0,0.05443816]
[1765725843004,0.0689843,89164.0,89163.0,0.02728816]
[1765725843209,0.0689843,89164.0,89163.0,0.05443816]
[1765725843406,0.0689843,89164.0,89163.0,0.05743816]
[1765725843908,0.0689843,89164.0,89163.0,0.06043816]
[1765725844095,0.0689843,89164.0,89163.0,0.05743816]
[1765725844303,0.0689843,89164.0,89163.0,0.06043816]
[1765725846820,0.0689843,89164.0,89163.0,0.42123816]
[1765725846821,0.02891,89164.0,89163.0,0.42123816]
[1765725847109,0.05777,89164.0,89163.0,0.42123816]
[1765725848100,0.05777,89164.0,89163.0,0.00616816]
[1765725848904,0.05777,89164.0,89163.0,0.03328816]
[1765725849106,0.05777,89164.0,89163.0,0.06043816]
[1765725849809,0.05777,89164.0,89163.0,0.03328816]
[1765725850011,0.05777,89164.0,89163.0,0.06043816]
[1765725851403,0.05777,89164.0,89163.0,0.00616816]
[1765725853603,0.05777,89164.0,89163.0,0.06043816]
[1765725854298,0.05777,89164.0,89163.0,0.07165266]
[1765725857803,0.02891,89164.0,89163.0,0.07165266]
[1765725858003,0.19485321,89173.0,89172.0,0.07052]
[1765725858205,0.0689832,89173.0,89172.0,0.07052]
[1765725859516,0.05777,89173.0,89172.0,0.07052]
[1765725859711,0.05777,89179.0,89178.0,0.07052]
[1765725860111,0.05777,89173.0,89172.0,0.02912]
[1765725860320,0.05777,89173.0,89172.0,0.002]
[1765725860616,0.05777,89173.0,89172.0,0.02912]
[1765725860816,0.05777,89173.0,89172.0,0.02812]
[1765725861209,0.05777,89173.0,89172.0,0.001]
[1765725862022,0.05777,89173.0,89172.0,0.02812]
[1765725862412,0.05777,89173.0,89172.0,0.02912]
[1765725864223,0.05777,89173.0,89172.0,0.0674833]
[1765725864621,0.05777,89173.0,89172.0,0.0837333]
[1765725865213,0.05777,89173.0,89172.0,0.0674833]
[1765725865625,0.05777,89173.0,89172.0,0.0837333]
[1765725867121,0.08222976,89173.0,89172.0,0.0837333]
[1765725870421,0.05336976,89173.0,89172.0,0.0837333]
[1765725870821,0.08320976,89173.0,89172.0,0.0837333]
[1765725871035,0.05926748,89181.0,89180.0,0.0668223]
[1765725871227,0.08372677,89181.0,89180.0,0.0668223]
[1765725871429,0.09493897,89181.0,89180.0,0.0668223]
[1765725872627,0.09493897,89181.0,89180.0,0.05561]
[1765725878034,0.08372677,89181.0,89180.0,0.05561]
[1765725880340,0.02462677,89181.0,89180.0,0.05561]
[1765725880838,0.00016748,89181.0,89180.0,0.05561]
[1765725881734,0.00016748,89181.0,89180.0,0.11595972]
[1765725881937,0.00016748,89181.0,89180.0,0.05561]
[1765725882438,0.00016748,89181.0,89180.0,0.11591104]
[1765725883142,0.00016748,89181.0,89180.0,0.11891104]
[1765725883540,0.00016748,89181.0,89180.0,0.12191104]
[1765725883833,0.00016748,89181.0,89180.0,0.06161]
[1765725885939,0.05926748,89181.0,89180.0,0.06161]
[1765725887733,0.05926748,89181.0,89180.0,0.03396]
[1765725888345,0.08366168,89181.0,89180.0,0.03396]
[1765725888532,0.08366168,89181.0,89180.0,0.003]
[1765725888842,0.08366168,89181.0,89180.0,0.002]
[1765725889044,0.08366168,89181.0,89180.0,0.004]
[1765725889636,0.08366168,89181.0,89180.0,0.002]
[1765725889836,0.08366168,89181.0,89180.0,0.003]
[1765725890035,0.08366168,89181.0,89180.0,0.001]
[1765725890341,0.08366168,89181.0,89180.0,0.003]
[1765725890946,0.08366168,89181.0,89180.0,0.002]
[1765725892444,0.08366168,89181.0,89180.0,0.001]
[1765725892645,0.08366168,89181.0,89180.0,0.002]
[1765725894440,0.0591,89165.0,89164.0,0.0391743]
[1765725894632,0.0591,89165.0,89164.0,0.0668243]
[1765725895241,0.0591,89165.0,89164.0,0.0391743]
[1765725895444,0.0703143,89164.0,89161.0,0.0112147]
[1765725895631,0.0703143,89164.0,89158.0,0.3608]
[1765725895837,0.45551697,89164.0,89163.0,0.00016816]
[1765725897044,0.4311143,89164.0,89163.0,0.00316816]
[1765725897244,0.4311143,89164.0,89163.0,0.00616816]
[1765725897645,0.45550853,89164.0,89163.0,0.00616816]
[1765725898948,0.09470853,89164.0,89163.0,0.00616816]
[1765725900447,0.08349423,89164.0,89163.0,0.06391816]
[1765725902554,0.08349423,89164.0,89163.0,0.06091816]
[1765725902754,0.08349423,89164.0,89163.0,0.03437816]
[1765725902955,0.08349423,89164.0,89163.0,0.00616816]
[1765725903647,0.08349423,89164.0,89163.0,0.00316816]
[1765725903857,0.08349423,89164.0,89163.0,0.00616816]
[1765725904558,0.05807,89158.0,89157.0,8.071e-05]
[1765725904742,0.0692851,89158.0,89157.0,8.071e-05]
[1765725905745,0.0692851,89158.0,89157.0,0.00408071]
[1765725905955,0.0692851,89158.0,89157.0,0.00808071]
[1765725906354,0.4300851,89158.0,89157.0,0.00808071]
[1765725906554,0.0692851,89158.0,89157.0,0.00808071]
[1765725908951,0.0692851,89158.0,89157.0,0.06583071]
[1765725909151,1.11610052,89180.0,89161.0,0.0689647]
[1765725909152,0.05807,89162.0,89161.0,0.0689647]
[1765725909372,0.05807,89162.0,89161.0,0.4297647]
[1765725909658,0.18395342,89171.0,89170.0,0.05775]
[1765725909856,0.05807,89171.0,89170.0,0.05775]
[1765725910160,0.67063684,89180.0,89179.0,0.05775]
[1765725910360,0.41887,89180.0,89179.0,0.05775]
[1765725911147,0.41887,89180.0,89174.0,0.011213]
[1765725911148,0.05807,89175.0,89174.0,0.068963]
[1765725912559,0.05807,89175.0,89174.0,0.070963]
[1765725912956,0.05807,89175.0,89174.0,0.071963]
[1765725917054,0.08244762,89175.0,89174.0,0.003]
[1765725917254,0.44324762,89175.0,89174.0,0.003]
[1765725918154,0.44324762,89175.0,89174.0,0.001]
[1765725919664,0.07331,89172.0,89171.0,0.00016816]
[1765725919861,0.09768762,89172.0,89171.0,0.00016816]
[1765725920964,0.09768762,89172.0,89171.0,0.00116816]
[1765725921656,0.09768762,89172.0,89157.0,0.01129581]
[1765725921657,0.0692851,89158.0,89157.0,8.071e-05]
[1765725921851,0.0692851,89158.0,89143.0,0.3608]
[1765725921852,0.05807,89144.0,89143.0,0.41855]
[1765725922666,0.05807,89137.0,89136.0,0.04532]
[1765725922854,0.05815028,89137.0,89136.0,0.02821]
[1765725923260,0.05807,89136.0,89135.0,0.00016825]
[1765725923457,0.44336543,89136.0,89135.0,0.00016825]
[1765725923657,0.05807,89118.0,89117.0,0.02821]
[1765725923962,0.0692909,89112.0,89111.0,0.38901]
[1765725924264,0.06937161,89112.0,89111.0,0.3608]
[1765725924452,0.05815071,89112.0,89111.0,0.3608]
[1765725924652,0.05815071,89112.0,89111.0,0.38901]